bitfinex-derivatives/quotes_BTCF0:USTF0_20250426
["timestamp","ask_amount","ask_price","bid_price","bid_amount"]
[1745708711970,1.48715129,94750.0,94749.0,0.10962753]
[1745708712784,3.06498144,94750.0,94749.0,0.10962753]
[1745708713084,0.2110131,94741.0,94738.0,0.03101631]
[1745708713286,0.8527431,94741.0,94740.0,0.15158331]
[1745708713584,1.15337129,94741.0,94740.0,0.15158331]
[1745708713971,1.28497129,94741.0,94740.0,0.15967399]
[1745708714776,1.28697129,94741.0,94740.0,0.15967399]
[1745708720883,1.07604129,94741.0,94740.0,0.15967399]
[1745708721088,1.00884129,94741.0,94740.0,0.15967399]
[1745708721387,0.93884129,94741.0,94740.0,0.15967399]
[1745708722387,0.93884129,94741.0,94740.0,0.28697399]
[1745708724292,0.57804129,94741.0,94740.0,0.28697399]
[1745708728584,0.57804129,94741.0,94740.0,0.15967399]
[1745708728980,0.57804129,94741.0,94740.0,0.28507399]
[1745708729186,0.57804129,94741.0,94740.0,0.49608939]
[1745708729895,0.57804129,94741.0,94740.0,0.28507399]
[1745708731582,0.57804129,94741.0,94740.0,0.22457399]
[1745708731986,0.57804129,94741.0,94740.0,0.15967399]
[1745708735890,0.78897129,94741.0,94740.0,0.15967399]
[1745708736797,0.78877965,94741.0,94740.0,0.15967399]
[1745708741687,0.27722146,94741.0,94740.0,0.37068939]
[1745708741893,0.21282146,94741.0,94740.0,0.89984139]
[1745708742200,0.002,94741.0,94740.0,0.97080516]
[1745708743195,0.2130131,94741.0,94740.0,1.09080516]
[1745708745103,0.2130131,94741.0,94740.0,0.73000516]
[1745708745500,0.2130131,94741.0,94740.0,0.79060516]
[1745708748105,0.2130131,94741.0,94740.0,0.67060516]
[1745708749103,0.2130131,94741.0,94740.0,0.56505316]
[1745708749598,0.1130523,94743.0,94740.0,0.61780656]
[1745708749800,0.1130523,94743.0,94742.0,0.2110109]
[1745708749996,0.1130523,94743.0,94742.0,0.44197467]
[1745708750793,0.3240632,94743.0,94742.0,0.44197467]
[1745708751101,0.3250632,94743.0,94742.0,0.44197467]
[1745708752992,0.3250632,94743.0,94742.0,0.44155925]
[1745708754503,0.0613,94743.0,94742.0,0.44155925]
[1745708755800,0.2723087,94743.0,94742.0,0.56605925]
[1745708756701,0.2723087,94743.0,94742.0,0.56641269]
[1745708758395,0.3392087,94743.0,94742.0,0.56641269]
[1745708760506,0.3392087,94743.0,94742.0,0.6296884]
[1745708764401,0.3392087,94743.0,94742.0,0.5659884]
[1745708764806,0.3392087,94743.0,94742.0,0.5045884]
[1745708765004,0.3392087,94743.0,94742.0,0.4414884]
[1745708766205,0.3392087,94743.0,94742.0,0.4254867]
[1745708767213,0.3392087,94743.0,94742.0,0.44113853]
[1745708772609,2.42859704,94743.0,94742.0,0.23012763]
[1745708773314,2.65859704,94743.0,94742.0,0.2144758]
[1745708778022,2.65859704,94743.0,94742.0,0.37547185]
[1745708779815,2.65859704,94743.0,94742.0,0.32099605]
[1745708782114,2.65859704,94743.0,94742.0,0.16]
[1745708783817,2.65859704,94743.0,94742.0,0.21451993]
[1745708789221,0.2637344,94756.0,94755.0,0.2637188]
[1745708789413,0.2637344,94756.0,94755.0,0.340974]
[1745708789611,0.2637344,94756.0,94755.0,0.39546988]
[1745708789612,0.56436259,94756.0,94755.0,0.39546988]
[1745708789814,0.56436259,94756.0,94755.0,0.46166988]
[1745708790515,0.56436259,94756.0,94755.0,0.52496988]
[1745708792013,0.56836259,94756.0,94755.0,0.52496988]
[1745708793321,0.56836259,94756.0,94755.0,0.31399588]
[1745708793514,0.63486259,94756.0,94755.0,0.2595]
[1745708793920,0.63486259,94756.0,94755.0,0.42049605]
[1745708796318,0.85579259,94756.0,94755.0,0.29099605]
[1745708796518,0.85179259,94756.0,94755.0,0.29099605]
[1745708796718,0.85379259,94756.0,94755.0,0.29099605]
[1745708796919,1.13379259,94756.0,94755.0,0.29099605]
[1745708797222,2.71162274,94756.0,94755.0,0.13]
[1745708798720,2.71262274,94756.0,94755.0,0.13]
[1745708799224,3.07342274,94756.0,94755.0,0.13]
[1745708802916,2.71262274,94756.0,94755.0,0.13]
[1745708803116,3.07342274,94756.0,94755.0,0.13]
[1745708803623,3.14252274,94756.0,94755.0,0.13]
[1745708804430,0.2110109,94742.0,94741.0,0.50620835]
[1745708804729,0.2110109,94742.0,94741.0,0.65620835]
[1745708804930,0.51163909,94742.0,94741.0,0.65620835]
[1745708805127,0.51163909,94742.0,94741.0,0.4952123]
[1745708805128,0.64643909,94742.0,94741.0,0.4952123]
[1745708805731,0.65643909,94742.0,94741.0,0.3528]
[1745708807518,0.65643909,94742.0,94741.0,0.40726233]
[1745708808325,0.64743909,94742.0,94741.0,0.40726233]
[1745708808824,0.58053909,94742.0,94741.0,0.40726233]
[1745708810835,0.58053909,94742.0,94741.0,0.61827543]
[1745708812538,0.58053909,94742.0,94741.0,0.77927148]
[1745708816539,0.58053909,94742.0,94741.0,0.61827543]
[1745708816735,0.58053909,94742.0,94741.0,0.68479543]
[1745708819939,0.58053909,94742.0,94741.0,0.27098233]
[1745708820440,0.80146909,94742.0,94741.0,0.27098233]
[1745708820639,0.80146909,94742.0,94741.0,0.15]
[1745708821231,0.86736909,94742.0,94741.0,0.15]
[1745708824348,0.86736909,94742.0,94741.0,0.2168]
[1745708824733,0.86736909,94742.0,94741.0,0.27130057]
[1745708825130,0.86736909,94742.0,94741.0,0.2168]
[1745708825440,0.86736909,94742.0,94741.0,0.27129823]
[1745708826841,0.86736909,94742.0,94741.0,0.2168]
[1745708827041,0.86736909,94742.0,94741.0,0.27129749]
[1745708828241,0.86736909,94742.0,94741.0,0.43216396]
[1745708829640,0.86736909,94742.0,94741.0,0.37766647]
[1745708830838,0.86736909,94742.0,94741.0,0.50048861]
[1745708831646,0.85736909,94742.0,94741.0,0.50048861]
[1745708832446,0.85736909,94742.0,94741.0,0.71150171]
[1745708832836,0.64643909,94742.0,94741.0,0.71150171]
[1745708833738,0.58053909,94742.0,94741.0,0.71150171]
[1745708834433,0.58053909,94742.0,94741.0,0.55063524]
[1745708837247,0.2799109,94742.0,94741.0,0.55063524]
[1745708844357,0.2799109,94742.0,94741.0,0.76503619]
[1745708848154,0.2799109,94742.0,94741.0,0.55063524]
[1745708857353,0.2799109,94742.0,94741.0,0.76496805]
[1745708861368,0.2799109,94742.0,94741.0,0.55063524]
[1745708862068,0.2799109,94742.0,94741.0,0.48233524]
[1745708866165,0.2799109,94742.0,94741.0,0.54841524]
[1745708869071,0.2799109,94742.0,94741.0,0.48233524]
[1745708869376,0.2799109,94742.0,94741.0,0.54841524]
[1745708870072,0.0689,94742.0,94741.0,0.54841524]
[1745708871874,0.2799109,94742.0,94741.0,0.54841524]
[1745708872475,0.21093,94750.0,94746.0,0.0527504]
[1745708872670,0.21093,94751.0,94750.0,0.2109909]
[1745708872977,0.21093,94751.0,94750.0,0.55121304]
[1745708873186,0.51161999,94751.0,94750.0,0.55121304]
[1745708873369,0.51161999,94751.0,94750.0,0.49950482]
[1745708873879,0.51361999,94751.0,94750.0,0.49950482]
[1745708874380,0.51361999,94751.0,94750.0,0.48391304]
[1745708875782,0.65431999,94751.0,94750.0,0.48391304]
[1745708877678,0.65431999,94751.0,94750.0,0.69827215]
[1745708879084,0.65431999,94751.0,94750.0,0.76435215]
[1745708881880,0.65431999,94751.0,94750.0,0.54999304]
[1745708883385,0.65431999,94751.0,94750.0,0.61869304]
[1745708883886,0.86524999,94751.0,94750.0,0.61869304]
[1745708897789,0.79594999,94751.0,94750.0,0.61869304]
[1745708897984,0.37402819,94751.0,94750.0,0.61869304]
[1745708898186,0.2109775,94757.0,94756.0,0.2109775]
[1745708898387,0.0679,94761.0,94760.0,0.2109708]
[1745708898589,0.2788686,94761.0,94760.0,0.42549294]
[1745708898788,0.4897986,94761.0,94760.0,0.42549294]
[1745708898992,0.5566986,94761.0,94760.0,0.42549294]
[1745708899495,0.5616986,94761.0,94760.0,0.42549294]
[1745708899996,0.5566986,94761.0,94760.0,0.21452214]
[1745708900296,0.5576986,94761.0,94760.0,0.28060214]
[1745708900488,0.5576986,94761.0,94760.0,0.17554081]
[1745708900688,0.5576986,94761.0,94760.0,0.24162081]
[1745708901299,0.6265986,94761.0,94760.0,0.24162081]
[1745708901698,0.6365986,94761.0,94760.0,0.24162081]
[1745708902797,0.6355986,94761.0,94760.0,0.24162081]
[1745708904199,0.6355986,94761.0,94760.0,0.24168137]
[1745708905996,0.6355986,94761.0,94760.0,0.22608]
[1745708906203,0.6355986,94761.0,94760.0,0.29613931]
[1745708907704,0.6355986,94761.0,94760.0,0.29613609]
[1745708908501,0.6355986,94761.0,94760.0,0.2805734]
[1745708909297,0.21093,94764.0,94760.0,0.6413734]
[1745708909496,0.2109686,94763.0,94762.0,0.2109641]
[1745708909802,0.2109686,94763.0,94762.0,0.3954575]
[1745708909803,0.2785686,94763.0,94762.0,0.3954575]
[1745708910005,0.2785686,94763.0,94762.0,0.4638575]
[1745708910611,0.2785686,94763.0,94762.0,0.47940095]
[1745708911102,0.2795686,94763.0,94762.0,0.47940095]
[1745708911692,0.001,94763.0,94762.0,0.47943174]
[1745708911894,0.2119641,94763.0,94762.0,0.47943174]
[1745708912499,0.2119641,94763.0,94762.0,0.8246575]
[1745708914908,0.2119641,94763.0,94762.0,1.03901661]
[1745708918408,0.2119641,94763.0,94762.0,1.10601661]
[1745708920203,0.001,94763.0,94762.0,1.10601661]
[1745708921809,0.001,94763.0,94762.0,0.8916575]
[1745708922209,0.001,94763.0,94762.0,1.0116575]
[1745708923713,0.0527183,94804.0,94762.0,0.9062214]
[1745708923912,0.21093,94776.0,94775.0,0.2109374]
[1745708924110,0.21093,94776.0,94775.0,0.8522708]
[1745708924510,0.2780181,94784.0,94782.0,0.2109219]
[1745708924817,0.03,94783.0,94782.0,0.4254153]
[1745708925016,0.24093,94783.0,94782.0,0.4254153]
[1745708925410,0.0527269,94789.0,94782.0,0.4254153]
[1745708925411,0.0527202,94801.0,94787.0,0.2109107]
[1745708925610,1.79396015,94788.0,94787.0,0.77199492]
[1745708926216,1.79396015,94788.0,94787.0,0.91059492]
[1745708926217,1.86776015,94788.0,94787.0,0.91059492]
[1745708926813,1.86776015,94788.0,94787.0,0.91058311]
[1745708927316,1.86976015,94788.0,94787.0,0.91058311]
[1745708928217,1.86976015,94788.0,94787.0,0.85608971]
[1745708928716,2.08066865,94788.0,94787.0,0.9104262]
[1745708929620,2.08066865,94788.0,94787.0,0.85608971]
[1745708930226,2.08066865,94788.0,94787.0,0.85584017]
[1745708930828,0.5028385,94788.0,94787.0,0.85584017]
[1745708932415,2.08066865,94788.0,94787.0,0.85584017]
[1745708932621,2.08066865,94788.0,94787.0,0.8403107]
[1745708933223,0.5028385,94788.0,94787.0,0.8403107]
[1745708933623,0.5028385,94788.0,94787.0,0.85580622]
[1745708934921,2.08066865,94788.0,94787.0,0.85580622]
[1745708935225,0.5028385,94788.0,94787.0,0.85580622]
[1745708935727,0.5028385,94788.0,94787.0,0.8403107]
[1745708936022,0.5028385,94788.0,94787.0,0.7688107]
[1745708940431,0.5028385,94788.0,94787.0,0.4080107]
[1745708940633,0.5028385,94788.0,94787.0,0.7688107]
[1745708941432,0.5028385,94788.0,94787.0,0.4080107]
[1745708941630,0.5028385,94788.0,94787.0,0.7688107]
[1745708942443,0.5028385,94788.0,94787.0,0.4080107]
[1745708942625,0.5028385,94788.0,94787.0,0.7688107]
[1745708943441,0.2919085,94788.0,94787.0,0.7688107]
[1745708943630,0.2919085,94788.0,94787.0,0.7844877]
[1745708948243,0.0527221,94798.0,94787.0,0.7844877]
[1745708948244,0.2108828,94802.0,94787.0,0.62791598]
[1745708948444,0.2708828,94802.0,94801.0,0.5716752]
[1745708948638,1.90143235,94802.0,94801.0,0.526477]
[1745708948832,2.11236235,94802.0,94801.0,0.5108]
[1745708949237,2.11236235,94802.0,94801.0,0.58904081]
[1745708949238,2.11536235,94802.0,94801.0,0.58904081]
[1745708949742,2.11236235,94802.0,94801.0,0.58904081]
[1745708949930,2.11836235,94802.0,94801.0,0.58904081]
[1745708952342,2.19126235,94802.0,94801.0,0.58904081]
[1745708953244,0.6134322,94802.0,94801.0,0.58904081]
[1745708955339,0.6134322,94802.0,94801.0,0.79992041]
[1745708955940,0.6134322,94802.0,94801.0,0.86922041]
[1745708956342,0.6134322,94802.0,94801.0,1.0296125]
[1745708957547,0.6134322,94802.0,94801.0,0.8187329]
[1745708958745,0.6134322,94802.0,94801.0,0.8731984]
[1745708959948,0.6134322,94802.0,94801.0,0.8187329]
[1745708960349,0.6104322,94802.0,94801.0,0.87320563]
[1745708960551,0.6104322,94802.0,94801.0,0.8187329]
[1745708961043,0.6104322,94802.0,94801.0,0.87320376]
[1745708961251,0.6104322,94802.0,94801.0,0.51240376]
[1745708961548,0.6104322,94802.0,94801.0,0.87320376]
[1745708962849,0.6104322,94802.0,94801.0,0.8187329]
[1745708965755,0.6104322,94802.0,94801.0,0.7494329]
[1745708966659,0.6104322,94802.0,94801.0,0.8154329]
[1745708968652,0.6104322,94802.0,94801.0,0.4546329]
[1745708968853,0.6104322,94802.0,94801.0,0.8154329]
[1745708969153,0.6104322,94802.0,94801.0,0.4546329]
[1745708969361,0.6104322,94802.0,94801.0,0.8154329]
[1745708970963,0.6104322,94802.0,94801.0,0.86990472]
[1745708972161,0.6104322,94802.0,94801.0,0.50910472]
[1745708972356,0.6104322,94802.0,94801.0,0.86990472]
[1745708972759,0.6104322,94802.0,94801.0,0.50910472]
[1745708972963,0.6104322,94802.0,94801.0,0.86990472]
[1745708973260,0.6104322,94802.0,94801.0,0.70951263]
[1745708978766,0.6104322,94802.0,94801.0,0.34871263]
[1745708978958,0.6104322,94802.0,94801.0,0.70951263]
[1745708979567,0.3995022,94802.0,94801.0,0.92039223]
[1745708981061,0.063,94802.0,94801.0,0.92039223]
[1745708981661,0.2138774,94802.0,94801.0,0.92039223]
[1745708981864,0.2108774,94802.0,94801.0,0.93610517]
[1745708982059,0.2118774,94802.0,94801.0,0.93610517]
[1745708983070,0.2118774,94802.0,94801.0,0.93617842]
[1745708983972,0.2118774,94802.0,94801.0,0.57537842]
[1745708984269,0.2118774,94802.0,94801.0,0.93617842]
[1745708985074,0.2118774,94802.0,94801.0,0.9361832]
[1745708985874,0.2118774,94802.0,94801.0,1.14996954]
[1745708986769,0.001,94802.0,94801.0,1.14996954]
[1745708987074,0.001,94802.0,94801.0,1.26996954]
[1745708987868,0.2118774,94802.0,94801.0,1.26996954]
[1745708988668,0.2118774,94802.0,94801.0,1.2698134]
[1745708990075,0.2118774,94802.0,94801.0,1.25417857]
[1745708990276,0.2118774,94802.0,94801.0,1.04039223]
[1745708992081,0.2118774,94802.0,94801.0,0.67959223]
[1745708992377,0.2118774,94802.0,94801.0,1.04039223]
[1745708996478,2.00063755,94802.0,94801.0,0.77504081]
[1745708996773,2.15263755,94802.0,94801.0,0.70904081]
[1745708996974,2.15263755,94802.0,94801.0,0.77500081]
[1745708997181,2.15263755,94802.0,94801.0,0.65500081]
[1745709000884,0.5748074,94802.0,94801.0,0.65500081]
[1745709008593,0.5748074,94802.0,94801.0,0.57327261]
[1745709008794,2.79615735,94802.0,94801.0,0.05]
[1745709009094,2.79615735,94802.0,94774.0,0.0527348]
[1745709009095,1.837634,94802.0,94774.0,0.0527348]
[1745709009294,0.2109374,94776.0,94775.0,0.33142968]
[1745709009586,0.5817374,94776.0,94775.0,0.1404837]
[1745709009788,0.7926674,94776.0,94775.0,0.1404837]
[1745709010090,0.83477935,94776.0,94775.0,0.15918253]
[1745709010292,0.97507935,94776.0,94775.0,0.03869883]
[1745709010589,0.97507935,94776.0,94775.0,0.04269883]
[1745709010891,1.17507935,94776.0,94775.0,0.04269883]
[1745709011083,1.17507935,94776.0,94775.0,0.03955015]
[1745709011486,1.28059136,94776.0,94775.0,0.03955015]
[1745709011787,1.28059136,94776.0,94775.0,0.0395503]
[1745709011989,1.28059136,94776.0,94775.0,0.024]
[1745709012188,1.28059136,94776.0,94775.0,0.022]
[1745709016190,1.17507935,94776.0,94775.0,0.022]
[1745709019194,0.81427935,94776.0,94775.0,0.022]
[1745709019394,1.53587935,94776.0,94775.0,0.022]
[1745709023089,1.53587935,94776.0,94775.0,0.03749669]
[1745709025898,1.53587935,94776.0,94775.0,0.03753528]
[1745709027606,1.53587935,94776.0,94775.0,0.03760379]
[1745709027800,1.4937674,94776.0,94775.0,0.03760379]
[1745709028001,1.4937674,94776.0,94775.0,0.03760421]
[1745709028504,1.4937674,94776.0,94775.0,0.11050421]
[1745709030497,0.2109419,94773.0,94772.0,1e-08]
[1745709030715,0.2109619,94764.0,94763.0,0.06596]
[1745709030905,0.6017619,94764.0,94763.0,0.10596]
[1745709031206,0.8126919,94764.0,94763.0,0.10596]
[1745709031702,0.9564919,94764.0,94763.0,0.11096]
[1745709032404,0.9564919,94764.0,94763.0,0.12788984]
[1745709034701,0.9564919,94764.0,94763.0,0.06192984]
[1745709035407,0.9564919,94764.0,94763.0,0.06997051]
[1745709036807,0.5956919,94764.0,94763.0,0.06997051]
[1745709037003,0.9564919,94764.0,94763.0,0.06997051]
[1745709039707,1.1864919,94764.0,94763.0,0.06997051]
[1745709039897,1.1864919,94764.0,94763.0,0.05304067]
[1745709041307,0.8256919,94764.0,94763.0,0.04904067]
[1745709041605,1.5472919,94764.0,94763.0,0.04904067]
[1745709042502,1.5472919,94764.0,94763.0,0.06665291]
[1745709044607,1.5472919,94764.0,94763.0,0.04904067]
[1745709047417,1.5502919,94764.0,94763.0,0.04804067]
[1745709047713,1.5502919,94764.0,94763.0,0.06559228]
[1745709048015,1.5502919,94764.0,94763.0,0.04804067]
[1745709048412,1.5502919,94764.0,94763.0,0.06530642]
[1745709050513,1.5502919,94764.0,94763.0,0.04804067]
[1745709054321,0.8286919,94764.0,94763.0,0.04804067]
[1745709054520,1.5502919,94764.0,94763.0,0.04804067]
[1745709054721,0.8286919,94764.0,94763.0,0.04804067]
[1745709054912,1.5502919,94764.0,94763.0,0.04804067]
[1745709056314,1.5502919,94764.0,94763.0,0.12004067]
[1745709057115,1.5502919,94764.0,94763.0,0.19474067]
[1745709064020,1.2481919,94764.0,94763.0,0.19474067]
[1745709064426,0.9355619,94764.0,94763.0,0.56166477]
[1745709064826,0.9355619,94764.0,94763.0,0.28474067]
[1745709065024,0.9455619,94764.0,94763.0,0.35070067]
[1745709067526,1.1564919,94764.0,94763.0,0.27600067]
[1745709067727,1.4773919,94764.0,94763.0,0.13804067]
[1745709070333,1.4773919,94764.0,94763.0,0.1536377]
[1745709070931,0.7557919,94764.0,94763.0,0.1536377]
[1745709071330,1.4773919,94764.0,94763.0,0.1536377]
[1745709071835,0.7557919,94764.0,94763.0,0.1536377]
[1745709072031,1.4773919,94764.0,94763.0,0.1536377]
[1745709073028,1.4773919,94764.0,94763.0,0.2969377]
[1745709074038,1.1864919,94764.0,94763.0,0.2969377]
[1745709074436,0.9355619,94764.0,94763.0,0.29733601]
[1745709074626,0.9355619,94764.0,94763.0,0.35187582]
[1745709075131,0.9355619,94764.0,94763.0,0.29733208]
[1745709075332,0.9355619,94764.0,94763.0,0.36329208]
[1745709076536,0.9355619,94764.0,94763.0,0.57425618]
[1745709076733,0.9355619,94764.0,94763.0,0.36329208]
[1745709077135,0.7246,94764.0,94763.0,0.74878298]
[1745709077327,0.2636982,94770.0,94769.0,0.2109486]
[1745709077527,0.2636982,94770.0,94769.0,0.74774001]
[1745709078133,0.2636982,94770.0,94769.0,0.86791726]
[1745709078537,0.2666982,94770.0,94769.0,0.86791726]
[1745709079038,0.2666982,94770.0,94769.0,0.92241409]
[1745709079640,0.2666982,94770.0,94769.0,0.86791726]
[1745709080526,0.2666982,94770.0,94769.0,0.65696866]
[1745709083929,0.2666982,94770.0,94769.0,0.86791946]
[1745709084530,0.2666982,94770.0,94769.0,0.50711946]
[1745709084827,0.2666982,94770.0,94769.0,0.86791946]
[1745709085642,0.2666982,94770.0,94769.0,0.86776608]
[1745709088233,0.2666982,94770.0,94769.0,0.86775455]
[1745709089529,0.2666982,94770.0,94769.0,0.50695455]
[1745709090037,0.2666982,94770.0,94769.0,0.86775455]
[1745709090231,0.2666982,94770.0,94769.0,0.82285455]
[1745709091634,0.3373982,94770.0,94769.0,0.61190375]
[1745709092433,0.3373982,94770.0,94769.0,0.68170375]
[1745709092633,0.59044015,94770.0,94769.0,0.53680375]
[1745709092836,0.84044015,94770.0,94769.0,0.17598499]
[1745709094234,0.84044015,94770.0,94769.0,0.12353229]
[1745709094439,0.2109575,94766.0,94765.0,0.0005]
[1745709094741,0.6818875,94766.0,94765.0,0.11]
[1745709094937,0.72399945,94766.0,94765.0,0.11]
[1745709095341,0.87299945,94766.0,94765.0,0.11]
[1745709095737,0.87499945,94766.0,94765.0,0.11]
[1745709097748,1.23579945,94766.0,94765.0,0.11]
[1745709098751,0.87499945,94766.0,94765.0,0.11]
[1745709104255,0.8328875,94766.0,94765.0,0.11]
[1745709106461,0.8328875,94766.0,94765.0,0.12636838]
[1745709107966,1.1936875,94766.0,94765.0,0.12614887]
[1745709111063,0.8328875,94766.0,94765.0,0.12614887]
[1745709111555,0.8328875,94766.0,94765.0,0.12617643]
[1745709112468,0.8328875,94766.0,94765.0,0.12617595]
[1745709114659,0.8328875,94766.0,94765.0,0.12606173]
[1745709115358,0.8328875,94766.0,94765.0,0.12606219]
[1745709117267,0.8328875,94766.0,94765.0,0.12600977]
[1745709119174,1.1936875,94766.0,94765.0,0.12600977]
[1745709120873,1.1936875,94766.0,94765.0,0.12597499]
[1745709122072,1.1936875,94766.0,94765.0,0.12597939]
[1745709123971,1.1936875,94766.0,94765.0,0.12594223]
[1745709126073,1.27410037,94766.0,94765.0,0.12594223]
[1745709127671,1.27410037,94766.0,94765.0,0.125942]
[1745709128475,1.27410037,94766.0,94765.0,0.198442]
[1745709129372,0.91330037,94766.0,94765.0,0.198442]
[1745709131474,0.91330037,94766.0,94765.0,0.1985722]
[1745709133172,0.91330037,94766.0,94765.0,0.1825]
[1745709133367,0.91330037,94766.0,94765.0,0.1985382]
[1745709135281,0.91330037,94766.0,94765.0,0.19852437]
[1745709139988,0.91330037,94766.0,94765.0,0.12602437]
[1745709142588,0.91330037,94766.0,94765.0,0.12579824]
[1745709144090,1.27410037,94766.0,94765.0,0.12579824]
[1745709145987,0.91330037,94766.0,94765.0,0.12579824]
[1745709146191,1.27410037,94766.0,94765.0,0.12579824]
[1745709146590,1.1936875,94766.0,94765.0,0.12579824]
[1745709148590,1.1936875,94766.0,94765.0,0.11]
[1745709150191,1.1936875,94766.0,94765.0,0.12591493]
[1745709150494,1.1936875,94766.0,94765.0,0.11]
[1745709150791,1.1936875,94766.0,94765.0,0.12590911]
[1745709150993,1.1936875,94766.0,94765.0,0.12590899]
[1745709151194,1.1936875,94766.0,94765.0,0.11]
[1745709151903,1.1936875,94766.0,94765.0,0.12590889]
[1745709152194,1.1936875,94766.0,94765.0,0.12588583]
[1745709155900,0.8328875,94766.0,94765.0,0.12588583]
[1745709156093,1.1936875,94766.0,94765.0,0.12588583]
[1745709157104,1.23579945,94766.0,94765.0,0.12580449]
[1745709160500,1.34132345,94766.0,94763.0,0.00804067]
[1745709160700,0.2109931,94750.0,94749.0,0.16102611]
[1745709160897,0.5919231,94750.0,94749.0,0.29102611]
[1745709161796,0.5919231,94750.0,94749.0,0.131]
[1745709162898,0.5919231,94750.0,94749.0,0.13880361]
[1745709164294,0.5919231,94750.0,94749.0,0.16563268]
[1745709176807,0.5919231,94750.0,94749.0,0.13880361]
[1745709177698,0.5919231,94750.0,94749.0,0.21440361]
[1745709178505,0.5919231,94750.0,94749.0,0.29460361]
[1745709184808,0.6663231,94750.0,94749.0,0.29460361]
[1745709187406,0.6663231,94750.0,94749.0,0.29360361]
[1745709189603,0.6663231,94750.0,94749.0,0.21340361]
[1745709190309,0.7435231,94750.0,94749.0,0.21340361]
[1745709193805,1.1043231,94750.0,94749.0,0.21340361]
[1745709197201,0.7435231,94750.0,94749.0,0.21340361]
[1745709197804,0.7435231,94750.0,94749.0,0.13780361]
[1745709198011,0.8179231,94750.0,94749.0,0.13780361]
[1745709201016,1.1787231,94750.0,94749.0,0.13780361]
[1745709201721,1.1787231,94750.0,94749.0,0.06522911]
[1745709201918,1.1787231,94750.0,94749.0,0.02756931]
[1745709203721,0.8179231,94750.0,94749.0,0.02756931]
[1745709204028,1.1787231,94750.0,94749.0,0.02756931]
[1745709204613,1.1787231,94750.0,94749.0,0.00780361]
[1745709204814,0.211022,94737.0,94736.0,0.13574072]
[1745709205012,0.501022,94737.0,94736.0,0.31249603]
[1745709205217,0.501022,94737.0,94736.0,0.25786532]
[1745709206124,0.580522,94737.0,94736.0,0.25786532]
[1745709206620,0.580522,94737.0,94736.0,0.25986532]
[1745709207036,0.791452,94737.0,94736.0,0.25786532]
[1745709207213,0.791452,94737.0,94736.0,0.25886532]
[1745709207618,0.791452,94737.0,94736.0,0.25786532]
[1745709207914,0.791452,94737.0,94736.0,0.26680086]
[1745709208719,0.791452,94737.0,94736.0,0.15893554]
[1745709209225,0.870352,94737.0,94736.0,0.15893554]
[1745709214928,0.791452,94737.0,94736.0,0.15893554]
[1745709215225,0.571452,94737.0,94736.0,0.15893554]
[1745709215432,0.360522,94737.0,94736.0,0.15893554]
[1745709215632,0.360522,94737.0,94736.0,0.24193554]
[1745709225633,0.281022,94737.0,94736.0,0.45295984]
[1745709226132,0.211022,94737.0,94736.0,0.57295984]
[1745709226533,0.211022,94737.0,94736.0,0.36193554]
[1745709227033,0.211022,94737.0,94736.0,0.44343554]
[1745709227834,0.211022,94737.0,94736.0,0.65445984]
[1745709231840,0.211022,94737.0,94736.0,0.70899981]
[1745709232137,0.211022,94737.0,94736.0,0.81455581]
[1745709234834,0.2110166,94740.0,94739.0,0.263767]
[1745709235031,0.0527508,94746.0,94745.0,0.2637504]
[1745709235237,0.0527508,94746.0,94745.0,0.41553977]
[1745709235638,0.0527508,94746.0,94745.0,0.58013977]
[1745709236241,0.0537508,94746.0,94745.0,0.70013977]
[1745709236442,0.1369508,94746.0,94745.0,0.70013977]
[1745709236941,0.3479528,94746.0,94745.0,0.70013977]
[1745709238844,0.3479528,94746.0,94745.0,0.6455998]
[1745709240140,0.212002,94746.0,94745.0,0.6455998]
[1745709240644,0.291602,94746.0,94745.0,0.70010161]
[1745709244149,0.291602,94746.0,94745.0,0.6455998]
[1745709244851,0.291602,94746.0,94745.0,0.70007291]
[1745709245055,0.291602,94746.0,94745.0,0.6455998]
[1745709246556,0.291602,94746.0,94745.0,0.7000712]
[1745709246751,0.291602,94746.0,94745.0,0.6455998]
[1745709247254,0.291602,94746.0,94745.0,0.70006835]
[1745709248856,0.290602,94746.0,94745.0,0.70006835]
[1745709249054,0.290602,94746.0,94745.0,1.06086835]
[1745709249359,0.0795,94749.0,94747.0,0.2109975]
[1745709249561,0.0527466,94753.0,94750.0,0.0527478]
[1745709249762,0.2637352,94753.0,94752.0,0.2109886]
[1745709249963,0.2637352,94753.0,94752.0,0.40545715]
[1745709250168,0.2109886,94753.0,94752.0,0.68195715]
[1745709250458,0.079,94758.0,94757.0,0.2109775]
[1745709250663,0.4135371,94770.0,94757.0,0.2109775]
[1745709250664,0.2637128,94762.0,94761.0,0.2109664]
[1745709250857,0.3427128,94762.0,94761.0,0.3509664]
[1745709251165,0.3427128,94762.0,94761.0,0.4709664]
[1745709251359,0.3427128,94762.0,94761.0,0.5481664]
[1745709251755,0.2899708,94762.0,94761.0,0.5481664]
[1745709251963,0.2109708,94762.0,94761.0,0.5481664]
[1745709252162,0.2109708,94762.0,94761.0,0.60259629]
[1745709252366,0.2109629,94764.0,94763.0,0.2109597]
[1745709252567,0.2109629,94764.0,94763.0,0.3509597]
[1745709253270,0.3715629,94764.0,94763.0,0.4709597]
[1745709255476,0.3735629,94764.0,94763.0,0.4709597]
[1745709258079,0.3735629,94764.0,94763.0,0.3509597]
[1745709261180,0.3735629,94764.0,94763.0,0.14]
[1745709261380,0.3735629,94764.0,94763.0,0.2058]
[1745709261582,0.3735629,94764.0,94763.0,0.4167641]
[1745709265382,0.63660485,94764.0,94763.0,0.2058]
[1745709265778,0.91660485,94764.0,94763.0,0.14]
[1745709275282,0.2109753,94758.0,94757.0,0.0658]
[1745709275487,0.2109998,94747.0,94745.0,0.06576]
[1745709275687,0.4519298,94747.0,94746.0,0.54533408]
[1745709275891,0.4519298,94747.0,94746.0,0.4908]
[1745709276190,0.6919298,94747.0,94746.0,0.4908]
[1745709276393,0.8487298,94747.0,94746.0,0.4908]
[1745709277282,0.211022,94737.0,94734.0,0.21461054]
[1745709277487,0.832752,94737.0,94736.0,0.05]
[1745709277792,0.87486395,94737.0,94736.0,0.05]
[1745709278305,1.02826395,94737.0,94736.0,0.0580072]
[1745709279595,1.22826395,94737.0,94736.0,0.0600072]
[1745709280585,1.22826395,94737.0,94736.0,0.0590072]
[1745709285990,0.86746395,94737.0,94736.0,0.0590072]
[1745709292999,0.825352,94737.0,94736.0,0.0590072]
[1745709298508,0.825352,94737.0,94717.0,0.23]
[1745709298509,0.2110644,94718.0,94717.0,0.23]
[1745709298804,0.2110711,94715.0,94714.0,0.0832]
[1745709299005,0.2110711,94715.0,94714.0,0.2332]
[1745709299600,0.2110711,94715.0,94714.0,0.25473178]
[1745709299802,0.2110711,94715.0,94714.0,0.33653178]
[1745709303900,0.5718711,94715.0,94714.0,0.33653178]
[1745709304609,0.5718711,94715.0,94714.0,0.34053178]